bitfinex/quotes_SOLUSD_20250508
["timestamp","ask_amount","ask_price","bid_price","bid_amount"]
[1746698921770,6.45303683,154.97,154.95,17.55878494]
[1746698921953,16.45303683,154.97,154.96,17.55878494]
[1746698922140,6.45303683,154.97,154.96,100.35878494]
[1746698922344,16.45259632,154.98,154.96,100.35878494]
[1746698922543,16.45259632,154.98,154.93,18.64964886]
[1746698922772,10.0,154.97,154.96,17.55878494]
[1746698922965,10.0,154.97,154.92,244.7]
[1746698923242,10.0,154.97,154.95,17.55878494]
[1746698923674,10.0,154.96,154.95,17.55878494]
[1746698925076,16.45327826,154.96,154.95,17.55878494]
[1746698927567,16.45263149,154.98,154.95,17.55878494]
[1746698927772,10.0,154.96,154.95,82.8]
[1746698927965,10.0,154.96,154.95,100.35878494]
[1746698928476,16.45263149,154.98,154.95,100.35878494]
[1746698928673,10.0,154.96,154.95,100.35878494]
[1746698928864,4.82405403,154.97,154.95,100.35878494]
[1746698929171,4.82405403,154.97,154.96,17.55878494]
[1746698929376,10.0,154.97,154.96,17.55878494]
[1746698929678,10.0,154.97,154.96,100.35878494]
[1746698930163,14.82362449,154.97,154.96,100.35878494]
[1746698932278,4.82362449,154.97,154.96,100.35878494]
[1746698932982,21.27648633,154.97,154.96,100.35878494]
[1746698933562,21.27648633,154.97,154.93,218.7]
[1746698933563,10.0,154.96,154.93,218.7]
[1746698934173,10.0,154.96,154.94,17.55878494]
[1746698934174,4.82362449,154.95,154.94,17.55878494]
[1746698934379,11.27731923,154.95,154.94,17.55878494]
[1746698934974,4.82362449,154.95,154.94,17.55878494]
[1746698936657,10.0,154.97,154.94,17.55878494]
[1746698936885,10.0,154.97,154.96,17.55878494]
[1746698937188,10.0,154.98,154.96,17.55878494]
[1746698937371,10.0,154.99,154.97,17.55878494]
[1746698937574,6.4518329,155.0,154.98,17.55878494]
[1746698937575,16.4518329,155.0,154.98,17.55878494]
[1746698937885,10.0,155.03,154.99,17.55878494]
[1746698938086,14.82052501,155.02,154.98,26.0]
[1746698938381,14.82052501,155.02,155.01,17.55878494]
[1746698938558,21.27147962,155.02,155.01,17.55878494]
[1746698939170,14.82052501,155.02,155.01,17.55878494]
[1746698939375,4.82052501,155.02,155.01,17.55878494]
[1746698939593,4.82052501,155.02,155.01,82.8]
[1746698939774,4.82052501,155.02,155.01,100.35878494]
[1746698940086,14.82052501,155.02,155.01,100.35878494]
[1746698940273,4.82052501,155.02,155.01,100.35878494]
[1746698941686,4.82052501,155.02,155.01,126.35878494]
[1746698941995,4.82052501,155.02,155.01,201.45963049]
[1746698942579,4.82052501,155.02,155.01,175.45963049]
[1746698943081,10.0,155.06,155.04,26.0]
[1746698943291,10.0,155.06,155.05,17.55878494]
[1746698943868,14.80425352,155.06,155.05,17.55878494]
[1746698944485,4.80425352,155.06,155.05,100.35878494]
[1746698944669,14.80425352,155.06,155.05,100.35878494]
[1746698946070,4.80425352,155.06,155.05,100.35878494]
[1746698946399,14.80425352,155.06,155.05,100.35878494]
[1746698946592,10.0,155.06,155.05,100.35878494]
[1746698947294,1.6394,155.1,155.05,100.35878494]
[1746698947295,10.0,155.08,155.05,175.4579662]
[1746698947478,10.0,155.08,155.07,17.55878494]
[1746698948185,10.0,155.08,155.07,100.35878494]
[1746698948386,16.44713361,155.11,155.07,100.35878494]
[1746698948565,16.44713361,155.11,155.1,17.55878494]
[1746698949174,16.44713361,155.11,155.09,17.55878494]
[1746698949380,14.78808942,155.1,155.09,17.55878494]
[1746698949692,4.78808942,155.1,155.09,17.55878494]
[1746698950079,14.78808942,155.1,155.09,17.55878494]
[1746698950285,16.44680006,155.12,155.09,17.55878494]
[1746698950477,10.0,155.13,155.11,17.55878494]
[1746698950808,6.44611514,155.14,155.12,17.55878494]
[1746698951098,10.0,155.13,155.12,17.55878494]
[1746698951293,10.0,155.13,155.12,100.35878494]
[1746698951491,10.0,155.13,155.12,82.8]
[1746698951691,16.44611514,155.14,155.12,82.8]
[1746698951892,10.0,155.13,155.12,82.8]
[1746698952194,10.0,155.13,155.12,100.35878494]
[1746698952376,6.44611514,155.14,155.12,100.35878494]
[1746698952695,16.44611514,155.14,155.12,100.35878494]
[1746698952897,10.0,155.13,155.12,100.35878494]
[1746698953069,10.0,155.13,155.12,82.8]
[1746698954801,16.4462064,155.13,155.12,82.8]
[1746698954967,16.4462064,155.13,155.11,100.35878494]
[1746698955173,10.0,155.12,155.11,100.35878494]
[1746698955700,16.4462064,155.13,155.11,100.35878494]
[1746698956002,16.4462064,155.13,155.12,17.55878494]
[1746698956202,16.44587428,155.14,155.12,17.55878494]
[1746698956502,16.44587428,155.14,155.13,17.55878494]
[1746698956503,6.44587428,155.14,155.13,17.55878494]
[1746698957004,16.44587428,155.14,155.13,17.55878494]
[1746698957873,16.44587428,155.14,155.13,100.35878494]
[1746698958073,6.44587428,155.14,155.13,100.35878494]
[1746698958304,16.44587428,155.14,155.13,100.35878494]
[1746698958596,16.44587428,155.14,155.13,82.8]
[1746698960896,16.44587428,155.14,155.12,17.55878494]
[1746698961078,10.0,155.12,155.11,17.55878494]
[1746698961688,32.56035152,155.14,155.09,82.8]
[1746698961892,10.0,155.12,155.11,17.55878494]
[1746698962095,16.44662197,155.12,155.11,17.55878494]
[1746698962700,16.44638424,155.13,155.09,82.8]
[1746698962901,6.44638424,155.13,155.12,17.55878494]
[1746698963202,16.44593219,155.14,155.12,17.55878494]
[1746698963379,16.44593219,155.14,155.09,132.8]
[1746698963380,10.0,155.13,155.09,132.8]
[1746698963579,10.0,155.13,155.12,17.55878494]
[1746698963800,10.0,155.13,155.09,132.8]
[1746698963997,10.0,155.12,155.09,132.8]
[1746698964899,6.44703758,155.11,155.09,132.8]
[1746698965101,10.0,155.12,155.1,17.55878494]
[1746698965291,10.0,155.12,155.11,17.55878494]
[1746698966104,10.0,155.12,155.09,82.8]
[1746698966304,10.0,155.11,155.09,82.8]
[1746698966889,6.44703758,155.11,155.09,82.8]
[1746698967200,16.44703758,155.11,155.09,82.8]
[1746698967502,16.44703758,155.11,155.1,17.55878494]
[1746698967685,10.0,155.1,155.09,100.35878494]
[1746698967999,16.44703758,155.11,155.09,100.35878494]
[1746698968176,10.0,155.1,155.09,82.8]
[1746698968372,10.0,155.07,155.06,82.8]
[1746698968578,10.0,155.07,155.06,100.35878494]
[1746698969093,16.44870058,155.07,155.06,100.35878494]
[1746698970586,21.22643832,155.07,155.06,100.35878494]
[1746698970789,21.22643832,155.07,155.06,82.8]
[1746698971300,21.22643832,155.07,155.02,100.35878494]
[1746698971301,10.0,155.03,155.02,100.35878494]
[1746698971505,1.5966,155.06,154.99,241.48]
[1746698971506,10.0,155.0,154.99,82.8]
[1746698971695,10.0,155.0,154.99,100.35878494]
[1746698972204,10.0,155.0,154.99,17.55878494]
[1746698972404,10.0,154.99,154.98,17.55878494]
[1746698972611,10.0,154.99,154.97,17.55878494]
[1746698972805,10.0,154.98,154.97,17.55878494]
[1746698972990,10.0,154.98,154.96,82.8]
[1746698973190,16.45244547,154.98,154.96,82.8]
[1746698973504,16.45244547,154.98,154.97,17.55878494]
[1746698974890,10.0,154.97,154.96,82.8]
[1746698975096,16.45369474,154.95,154.94,82.8]
[1746698975300,16.45369474,154.95,154.94,100.35878494]
[1746698975892,16.45369474,154.95,154.94,82.8]
[1746698978918,16.45369474,154.95,154.92,17.55878494]
[1746698978919,21.2347923,154.95,154.92,17.55878494]
[1746698979110,10.0,154.93,154.92,82.8]
[1746698979287,10.0,154.91,154.89,82.8]
[1746698979489,10.0,154.9,154.89,82.8]
[1746698980815,16.45577792,154.9,154.89,100.35878494]
[1746698982821,16.45577792,154.9,154.89,82.8]
[1746698983017,16.45577792,154.9,154.89,100.35878494]
[1746698983524,16.45577792,154.9,154.89,82.8]
[1746698984019,10.0,154.88,154.87,82.8]
[1746698984318,10.0,154.88,154.87,100.35878494]
[1746698984506,10.0,154.88,154.87,82.8]
[1746698984707,10.0,154.88,154.87,100.35878494]
[1746698984900,16.45661157,154.88,154.87,100.35878494]
[1746698986013,16.45661157,154.88,154.87,82.8]
[1746698987911,16.45661157,154.88,154.86,17.55878494]
[1746698988132,10.0,154.85,154.83,108.8]
[1746698988293,10.0,154.86,154.84,17.55878494]
[1746698988502,10.0,154.82,154.81,3.19313264]
[1746698988827,10.0,154.85,154.81,103.55191758]
[1746698988994,10.0,154.85,154.84,17.55878494]
[1746698991697,10.0,154.88,154.84,125.46671331]
[1746698991900,10.0,154.87,154.84,107.90792837]
[1746698992210,10.0,154.87,154.86,17.55878494]
[1746698992929,10.0,154.88,154.86,100.35878494]
[1746698993111,10.0,154.88,154.87,17.55878494]
[1746698994720,10.0,154.9,154.89,26.0]
[1746698994913,10.0,154.92,154.9,26.0]
[1746698995228,10.0,154.93,154.91,17.55878494]
[1746698995435,10.0,154.93,154.92,17.55878494]
[1746698996136,10.0,154.92,154.91,82.8]
[1746698996427,10.0,154.92,154.91,100.35878494]
[1746698997308,10.0,154.93,154.91,100.35878494]
[1746698997512,10.0,154.93,154.92,17.55878494]
[1746698998016,16.45452785,154.93,154.92,17.55878494]
[1746698999303,16.45452785,154.93,154.91,100.35878494]
[1746698999629,16.13443169,154.95,154.91,82.8]
[1746698999630,16.45494448,154.92,154.91,82.8]
[1746698999925,16.45494448,154.92,154.9,17.55878494]
[1746699000132,10.0,154.91,154.9,17.55878494]
[1746699001030,10.0,154.88,154.87,108.8]
[1746699001200,10.0,154.88,154.87,82.8]
[1746699001403,10.0,154.88,154.87,100.35878494]
[1746699001809,16.45661157,154.88,154.87,100.35878494]
[1746699002016,16.45661157,154.88,154.87,82.8]
[1746699002202,16.45661157,154.88,154.87,100.35878494]
[1746699006924,16.45661157,154.88,154.87,82.8]
[1746699007517,10.0,154.83,154.82,82.8]
[1746699007922,16.45869663,154.83,154.82,82.8]
[1746699008111,34.01748157,154.83,154.78,17.55878494]
[1746699008310,10.0,154.8,154.79,17.55878494]
[1746699008511,10.0,154.8,154.79,100.35878494]
[1746699009609,10.0,154.8,154.79,82.8]
[1746699010048,16.45994832,154.8,154.79,82.8]
[1746699010208,16.45994832,154.8,154.77,82.8]
[1746699010209,10.0,154.78,154.77,82.8]
[1746699010415,10.0,154.78,154.76,17.55878494]
[1746699010615,10.0,154.77,154.76,17.55878494]
[1746699012146,16.46120049,154.77,154.76,17.55878494]
[1746699012440,10.0,154.74,154.73,125.08]
[1746699012638,10.0,154.74,154.73,108.8]
[1746699012940,10.0,154.74,154.73,100.35878494]
[1746699013922,10.0,154.75,154.73,100.35878494]
[1746699014229,10.0,154.75,154.74,17.55878494]
[1746699015221,10.0,154.74,154.73,82.8]
[1746699015417,10.0,154.75,154.73,100.35878494]
[1746699015617,10.0,154.75,154.74,17.55878494]
[1746699016017,10.0,154.76,154.74,17.55878494]
[1746699016242,10.0,154.76,154.75,43.55878494]
[1746699017850,10.0,154.76,154.75,126.35878494]
[1746699019033,10.0,154.76,154.75,126.35878494]
[1746699019952,10.0,154.76,154.75,108.8]
[1746699020249,10.0,154.76,154.75,126.35878494]
[1746699021653,10.0,154.78,154.76,18.64964886]
[1746699021950,10.0,154.79,154.77,17.55878494]
[1746699022124,10.0,154.8,154.78,17.55878494]
[1746699022324,10.0,154.81,154.79,17.55878494]
[1746699022549,10.0,154.82,154.8,35.11756988]
[1746699022750,10.0,154.85,154.81,43.55878494]
[1746699022934,10.0,154.85,154.84,17.55878494]
[1746699023254,4.79452926,154.85,154.84,100.35878494]
[1746699023550,14.79452926,154.85,154.84,100.35878494]
[1746699023927,4.79452926,154.85,154.84,100.35878494]
[1746699024126,10.0,154.85,154.84,100.35878494]
[1746699025649,16.45786244,154.85,154.84,82.8]
[1746699026752,38.81489198,154.85,154.84,82.8]
[1746699026929,10.0,154.81,154.8,17.55878494]
[1746699027124,10.0,154.81,154.8,100.35878494]
[1746699028148,10.0,154.84,154.82,26.0]
[1746699028455,10.0,154.84,154.83,17.55878494]
[1746699030955,16.45827951,154.84,154.83,17.55878494]
[1746699031158,16.45827951,154.84,154.83,26.0]
[1746699031365,10.0,154.81,154.8,236.25878494]
[1746699031556,10.0,154.81,154.8,100.35878494]
[1746699032443,10.0,154.81,154.79,43.55878494]
[1746699032664,10.0,154.78,154.77,126.35878494]
[1746699033045,10.0,154.78,154.77,82.8]
[1746699034778,16.46078304,154.78,154.77,82.8]
[1746699035084,10.0,154.76,154.75,142.63878494]
[1746699035574,10.0,154.76,154.75,126.35878494]
[1746699036375,10.0,154.77,154.75,126.35878494]
[1746699036672,10.0,154.76,154.75,108.8]
[1746699037676,10.0,154.76,154.75,126.35878494]
[1746699039873,16.46129532,154.77,154.75,126.35878494]
[1746699040174,10.0,154.76,154.75,108.8]
[1746699040378,10.0,154.76,154.75,126.35878494]
[1746699041864,3.07097905,154.83,154.82,26.0]
[1746699042053,3.07097905,154.83,154.82,43.55878494]
[1746699042252,3.07097905,154.84,154.82,43.55878494]
[1746699042453,3.07097905,154.83,154.82,26.0]
[1746699042662,3.07097905,154.84,154.82,26.0]
[1746699042880,3.07097905,154.87,154.84,50.0]
[1746699043063,1.06987191,154.9,154.89,18.64964886]
[1746699043663,1.06987191,154.9,154.89,79.76721874]
[1746699045080,1.06987191,154.9,154.89,62.2084338]
[1746699045757,1.06987191,154.9,154.89,43.55878494]
[1746699045957,1.06987191,154.9,154.89,17.55878494]
[1746699046158,7.52564983,154.9,154.89,17.55878494]
[1746699046481,23.66509463,154.9,154.86,17.55878494]
[1746699046787,23.66509463,154.9,154.87,17.55878494]
[1746699049178,4.80104796,154.89,154.87,17.55878494]
[1746699050182,11.25765953,154.88,154.87,17.55878494]
[1746699050380,11.25765953,154.88,154.86,17.55878494]
[1746699050991,4.80104796,154.87,154.86,17.55878494]
[1746699052186,11.25807643,154.87,154.86,17.55878494]
[1746699053974,11.25807643,154.87,154.86,100.35878494]
[1746699054170,11.25807643,154.87,154.86,82.8]
[1746699054770,27.40064761,154.87,154.83,100.35878494]
[1746699055773,4.80104796,154.86,154.84,17.55878494]
[1746699055969,4.80104796,154.86,154.83,100.35878494]
[1746699056293,6.45786244,154.85,154.83,100.35878494]
[1746699056674,6.45786244,154.85,154.83,82.8]
[1746699056875,4.80104796,154.84,154.83,82.8]
[1746699058297,11.25932747,154.84,154.83,100.35878494]
[1746699058592,11.25932747,154.84,154.82,100.35878494]
[1746699059099,4.80104796,154.83,154.82,100.35878494]
[1746699062003,4.80104796,154.84,154.82,100.35878494]
[1746699062299,4.80104796,154.84,154.83,17.55878494]
[1746699063001,4.80104796,154.84,154.83,100.35878494]
[1746699063504,11.25932747,154.84,154.83,100.35878494]
[1746699064018,11.25932747,154.84,154.83,82.8]
[1746699068302,28.81811241,154.84,154.8,82.8]
[1746699068711,44.96381119,154.84,154.8,82.8]
[1746699068879,17.55878494,154.83,154.8,82.8]
[1746699069078,27.40502625,154.84,154.76,108.8]
[1746699069277,17.55878494,154.81,154.76,100.35878494]
[1746699069477,4.80104796,154.8,154.76,100.35878494]
[1746699069905,6.46036565,154.79,154.76,100.35878494]
[1746699070104,6.46036565,154.79,154.76,82.8]
[1746699070723,24.01915059,154.79,154.76,82.8]
[1746699070928,4.80104796,154.78,154.76,82.8]
[1746699071729,4.80104796,154.77,154.76,82.8]
[1746699073609,28.82103339,154.77,154.72,108.8]
[1746699073809,17.55878494,154.75,154.72,82.8]
[1746699074038,17.55878494,154.76,154.72,82.8]
[1746699074219,24.02078358,154.76,154.72,82.8]
[1746699074528,17.55878494,154.74,154.72,82.8]
[1746699074820,17.55878494,154.73,154.72,82.8]
[1746699075024,17.55878494,154.73,154.68,82.8]
[1746699075229,17.55878494,154.72,154.68,82.8]
[1746699075527,22.3598329,154.72,154.68,82.8]
[1746699076197,11.26475424,154.71,154.68,82.8]
[1746699076395,28.82353918,154.71,154.68,82.3]
[1746699077201,12.86345424,154.71,154.68,82.3]
[1746699077409,4.80104796,154.7,154.68,82.3]
[1746699078109,11.26526743,154.7,154.68,82.3]
[1746699078328,4.80104796,154.69,154.68,82.3]
[1746699078526,4.80104796,154.69,154.67,17.55878494]
[1746699078724,4.80104796,154.69,154.66,17.55878494]
[1746699079108,6.46421947,154.7,154.66,17.55878494]
[1746699080612,24.02300441,154.7,154.66,17.55878494]
[1746699081012,24.02300441,154.7,154.65,17.55878494]
[1746699081742,6.46421947,154.7,154.67,17.55878494]
[1746699081931,19.15748494,154.74,154.69,17.55878494]
[1746699082122,1.5987,154.74,154.69,17.55878494]
[1746699082324,17.55878494,154.73,154.68,17.55878494]
[1746699082634,17.55878494,154.71,154.67,17.55878494]
[1746699082939,4.77856221,154.72,154.69,17.55878494]
[1746699083145,4.77856221,154.72,154.68,17.55878494]
[1746699083523,22.33734715,154.72,154.68,17.55878494]
[1746699083836,6.46370628,154.71,154.68,17.55878494]
[1746699084043,24.02249122,154.71,154.67,17.55878494]
[1746699084252,24.02249122,154.71,154.66,99.85878494]
[1746699084750,24.02249122,154.71,154.64,161.9]
[1746699084751,17.55878494,154.69,154.64,26.0]
[1746699085046,17.55878494,154.69,154.64,125.85878494]
[1746699085744,6.46495991,154.68,154.64,125.85878494]
[1746699086243,6.46495991,154.68,154.65,17.55878494]
[1746699087718,6.46454198,154.69,154.66,17.55878494]
[1746699088742,6.46454198,154.69,154.65,17.55878494]
[1746699089245,6.46412411,154.7,154.66,17.55878494]
[1746699089619,6.46412411,154.7,154.64,108.3]
[1746699089817,40.18321932,154.7,154.65,17.55878494]
[1746699090224,17.55878494,154.69,154.64,99.85878494]
[1746699090445,17.55878494,154.69,154.64,82.3]
[1746699090621,17.55878494,154.68,154.64,82.3]
[1746699090814,22.32856921,154.68,154.64,82.3]
[1746699091243,6.4653779,154.67,154.64,82.3]
[1746699091445,6.4653779,154.67,154.63,17.55878494]
[1746699092142,22.62882265,154.67,154.62,108.3]
[1746699092314,40.18760759,154.67,154.62,125.85878494]
[1746699092510,17.55878494,154.65,154.59,82.3]
[1746699092842,17.55878494,154.65,154.6,17.55878494]
[1746699093250,6.46663217,154.64,154.6,17.55878494]
[1746699093747,6.46663217,154.64,154.59,108.3]
[1746699093748,24.02541711,154.64,154.59,125.85878494]
[1746699093939,58.3204363,154.71,154.63,17.55878494]
[1746699094246,16.16214493,154.69,154.65,17.55878494]
[1746699094415,16.16214493,154.69,154.6,18.64964886]
[1746699094721,33.72092987,154.69,154.64,17.55878494]
[1746699095223,6.4653779,154.67,154.64,17.55878494]
[1746699095418,6.4653779,154.67,154.62,6.46740162]
[1746699095730,6.4653779,154.67,154.64,17.55878494]
[1746699096834,6.4653779,154.67,154.61,6.467718]
[1746699097143,6.46495991,154.68,154.64,17.55878494]
[1746699097449,4.77496069,154.67,154.64,17.55878494]
[1746699098022,4.77496069,154.66,154.63,17.55878494]
[1746699098738,6.46495991,154.68,154.64,17.55878494]
[1746699099251,40.18614464,154.68,154.64,17.55878494]
[1746699099747,22.6273597,154.68,154.64,17.55878494]
[1746699099930,4.77888434,154.67,154.64,17.55878494]
[1746699100549,6.46621403,154.65,154.64,17.55878494]
[1746699101045,6.46621403,154.65,154.63,17.55878494]
[1746699105038,11.25184628,154.64,154.63,17.55878494]
[1746699105846,11.25184628,154.64,154.6,82.3]
[1746699106041,11.25184628,154.64,154.63,17.55878494]
[1746699109353,11.25184628,154.64,154.6,82.3]
[1746699109556,11.25184628,154.64,154.63,17.55878494]
[1746699111727,11.25184628,154.64,154.63,11.04542978]
[1746699113534,4.78521411,154.64,154.63,11.04542978]
[1746699114051,4.78521411,154.64,154.63,93.34542978]
[1746699115333,4.78521411,154.64,154.63,86.34542978]
[1746699117228,11.25184628,154.64,154.63,86.34542978]
[1746699118336,11.25184628,154.64,154.63,91.78494311]
[1746699119868,4.78521411,154.64,154.63,91.78494311]
[1746699121768,6.46328852,154.72,154.67,26.0]
[1746699122064,24.11980171,154.77,154.71,11.04542978]
[1746699122268,24.11980171,154.77,154.73,11.04542978]
[1746699123477,11.04542978,154.76,154.71,91.78494311]
[1746699123768,17.6540167,154.76,154.71,98.39353003]
[1746699124360,24.11980171,154.77,154.71,98.39353003]
[1746699124558,17.6540167,154.76,154.71,98.39353003]
[1746699125065,17.6540167,154.74,154.71,80.73951333]
[1746699125273,6.4628708,154.73,154.71,80.73951333]
[1746699125574,40.27406451,154.73,154.68,17.6540167]
[1746699127563,40.27406451,154.73,154.67,80.73951333]
[1746699127858,40.27406451,154.73,154.68,17.6540167]
[1746699129052,22.62004781,154.73,154.68,17.6540167]
[1746699129257,22.62004781,154.73,154.7,17.6540167]
[1746699129466,16.15717701,154.73,154.7,17.6540167]
[1746699129671,6.46245314,154.74,154.72,17.6540167]
[1746699130172,6.46245314,154.74,154.73,17.6540167]
[1746699131374,16.15510034,154.75,154.73,17.6540167]
[1746699131547,16.15510034,154.75,154.68,18.64964886]
[1746699131872,16.15510034,154.75,154.72,17.6540167]
[1746699132479,16.15510034,154.75,154.73,17.6540167]
[1746699132655,6.46161798,154.76,154.73,17.6540167]
[1746699132973,6.46161798,154.76,154.75,17.6540167]
[1746699134275,4.82714532,154.76,154.75,98.39353003]
[1746699136949,11.2887633,154.76,154.75,98.39353003]
[1746699137579,4.82714532,154.76,154.75,98.39353003]
[1746699143762,4.82714532,154.76,154.75,91.76372589]
[1746699144487,4.82714532,154.76,154.75,110.41337475]
[1746699144690,1.6294,154.84,154.78,44.64964886]
[1746699144891,17.48124103,154.87,154.82,11.02421256]
[1746699145197,16.14438794,154.86,154.82,91.76372589]
[1746699145787,27.1686005,154.86,154.82,80.73951333]
[1746699145993,16.14438794,154.86,154.82,91.76372589]
[1746699146475,27.1686005,154.86,154.82,80.73951333]
[1746699146675,11.02421256,154.83,154.82,80.73951333]
[1746699146867,11.02421256,154.83,154.78,117.76372589]
[1746699147183,16.14434956,154.86,154.82,11.02421256]
[1746699147380,16.14434956,154.86,154.83,11.02421256]
[1746699147585,16.14434956,154.86,154.82,91.76372589]
[1746699148189,16.14434956,154.86,154.83,11.02421256]
[1746699149002,6.45702847,154.87,154.84,11.02421256]
[1746699149795,6.45702847,154.87,154.85,11.02421256]
[1746699150088,6.45619471,154.89,154.86,11.02421256]
[1746699150300,1.06987191,154.9,154.88,11.02421256]
[1746699150598,1.06987191,154.9,154.89,11.02421256]
[1746699150893,1.06987191,154.9,154.89,91.76372589]
[1746699151568,7.52564983,154.9,154.89,91.76372589]
[1746699151769,7.52564983,154.9,154.89,98.34698068]
[1746699153695,7.52564983,154.9,154.89,80.73951333]
[1746699155693,25.13311718,154.9,154.89,80.73951333]
[1746699155881,41.27256198,154.9,154.85,80.73951333]
[1746699156084,17.60746735,154.89,154.85,80.73951333]
[1746699157698,25.13311718,154.9,154.85,98.34698068]
[1746699159175,4.7679629,154.89,154.85,98.34698068]
[1746699159882,25.13311718,154.9,154.85,98.34698068]
[1746699161789,4.77358495,154.89,154.85,98.34698068]
[1746699162300,25.13311718,154.9,154.85,98.34698068]
[1746699162797,7.52564983,154.9,154.86,17.60746735]
[1746699162995,25.13311718,154.9,154.86,17.60746735]
[1746699163295,7.52564983,154.9,154.86,17.60746735]
[1746699163502,1.06987191,154.9,154.87,17.60746735]
[1746699163969,1.06987191,154.9,154.86,6.45741009]
[1746699163970,1.06987191,154.9,154.89,17.60746735]
[1746699164171,5.8493166,154.9,154.89,98.34698068]
[1746699165187,1.06987191,154.9,154.89,80.73951333]
[1746699166779,7.52564983,154.9,154.89,80.73951333]
[1746699167010,12.30738327,154.9,154.89,80.73951333]
[1746699167307,29.91485062,154.9,154.89,80.73951333]
[1746699167503,12.30738327,154.9,154.89,80.73951333]
[1746699167807,47.71729542,154.9,154.82,98.34698068]
[1746699168113,17.60746735,154.87,154.82,98.34698068]
[1746699168285,17.60746735,154.87,154.82,124.34698068]
[1746699168885,57.60698423,154.9,154.81,17.60746735]
[1746699169112,17.60746735,154.86,154.81,17.60746735]
[1746699169297,17.60746735,154.86,154.81,98.34698068]
[1746699169485,6.45786244,154.85,154.81,98.34698068]
[1746699169685,17.60746735,154.84,154.81,80.73951333]
[1746699170205,22.60251855,154.85,154.81,80.73951333]
[1746699170505,2.73287191,154.9,154.84,17.60746735]
[1746699170812,6.45619471,154.89,154.86,17.60746735]
[1746699171015,40.20414885,154.89,154.84,98.34698068]
[1746699173188,22.5966815,154.89,154.85,17.60746735]
[1746699173897,22.5966815,154.89,154.85,98.34698068]
[1746699174616,6.45702847,154.87,154.85,98.34698068]
[1746699175088,6.45702847,154.87,154.85,80.73951333]
[1746699175488,4.78778508,154.86,154.85,80.73951333]
[1746699176215,4.78778508,154.86,154.85,98.34698068]
[1746699176920,11.24523051,154.86,154.85,98.34698068]
[1746699177422,4.78778508,154.86,154.85,98.34698068]
[1746699179615,11.24523051,154.86,154.85,98.34698068]
[1746699181412,44.99631144,154.86,154.81,114.54698068]
[1746699181609,17.60746735,154.85,154.81,80.73951333]
[1746699182200,17.60746735,154.83,154.81,80.73951333]
[1746699182408,22.39525243,154.84,154.81,80.73951333]
[1746699183120,4.78778508,154.83,154.81,80.73951333]
[1746699183625,6.4591138,154.82,154.81,80.73951333]
[1746699186827,11.24856812,154.78,154.77,98.34698068]
[1746699188232,4.78778508,154.78,154.77,98.34698068]
[1746699191025,11.24856812,154.78,154.77,80.73951333]
[1746699191830,11.24856812,154.78,154.75,43.60746735]
[1746699192201,11.24856812,154.78,154.77,17.60746735]
[1746699192427,4.78778508,154.78,154.77,17.60746735]
[1746699193811,4.78778508,154.78,154.77,11.0189622]
[1746699194824,4.78778508,154.78,154.75,26.0]
[1746699194825,11.24856812,154.78,154.76,11.0189622]
[1746699195924,4.78778508,154.77,154.72,80.73951333]
[1746699196226,6.46161798,154.76,154.74,11.0189622]
[1746699197018,4.78778508,154.75,154.74,11.0189622]
[1746699198022,11.24982062,154.75,154.74,11.0189622]
[1746699198727,11.24982062,154.75,154.73,11.0189622]
[1746699199308,4.78778508,154.74,154.72,26.0]
[1746699199513,4.78778508,154.74,154.73,11.0189622]
[1746699200215,11.25023822,154.74,154.73,11.0189622]
[1746699201032,6.46245314,154.74,154.73,11.0189622]
[1746699201222,6.46161798,154.76,154.73,11.0189622]
[1746699201427,33.63462515,154.76,154.71,27.1789622]
[1746699201612,22.61566295,154.76,154.72,11.0189622]
[1746699201932,22.61566295,154.76,154.73,11.0189622]
[1746699201933,4.81042181,154.75,154.73,11.0189622]
[1746699202519,4.81042181,154.75,154.72,11.0189622]
[1746699202827,4.81042181,154.74,154.72,11.0189622]
[1746699203542,22.61566295,154.76,154.72,11.0189622]
[1746699204208,22.61566295,154.76,154.73,11.0189622]
[1746699204534,4.80735219,154.75,154.73,11.0189622]
[1746699205230,4.80735219,154.75,154.71,96.89951333]
[1746699205231,4.80735219,154.75,154.71,107.91847553]
[1746699205734,6.4628708,154.73,154.71,91.75847553]
[1746699206721,22.61712439,154.75,154.71,91.75847553]
[1746699206936,22.61712439,154.75,154.71,11.0189622]